[Event "44th Chess Olympiad Open 2022"]
[Site "Chennai"]
[Date "2022.08.07"]
[Round "9.10"]
[White "Kuzubov, Yuriy"]
[Black "Kuybokarov, Temur"]
[Result "1-0"]
[WhiteElo "2642"]
[BlackElo "2583"]
[Annotator "TA"]
[PlyCount "73"]
[EventDate "2022.??.??"]
[TimeControl "60"]

{[%evp 22,73,38,25,44,40,44,43,60,58,83,41,69,39,81,87,99,110,109,110,111,134,
118,112,117,127,99,47,80,81,67,73,85,-18,2570,703,695,700,650,503,724,498,757,
478,548,545,537,538,531,525,634,607,620,599]} 1. Nf3 {[%emt 0:00:04]} d5 {
[%emt 0:00:04]} 2. d4 {[%emt 0:00:06]} Nf6 {[%emt 0:00:31]} 3. c4 {[%emt 0:00:
00]} dxc4 {[%emt 0:00:21]} 4. e3 {[%emt 0:00:19]} e6 {[%emt 0:01:18]} 5. Bxc4 {
[%emt 0:00:07]} a6 {[%emt 0:02:17]} 6. O-O {[%emt 0:05:24]} Nbd7 {[%emt 0:00:
00]} 7. a4 {[%emt 0:19:56]} c5 {[%emt 0:05:24]} 8. Nc3 {[%emt 0:00:13]} cxd4 {
[%emt 0:00:19]} 9. exd4 {[%emt 0:11:03]} Be7 {[%emt 0:05:08]} 10. Bg5 {[%emt 0:
00:00]} O-O {[%emt 0:02:39]} 11. Re1 {[%emt 0:00:25]} Nb6 {[%emt 0:05:18]} 12.
Bb3 {[%emt 0:00:31]} Nfd5 {[%emt 0:11:19] [#] E54: Nimzo-Indian: Rubinstein:
Main Line: 7...dxc4 8 Bxc4.} 13. h4 $146 {[%emt 0:31:38]} ({Predecessor:} 13.
Bxe7 Nxe7 14. Qd3 Ned5 15. Bc2 g6 16. Bb3 a5 17. Ne4 Bd7 18. Ne5 Bc6 19. Qh3
Kg7 20. Ng4 {½-½ (44) Taimanov,M-Kortschnoj,V Buenos Aires 1960}) 13... a5 {
[%emt 0:13:36]} 14. Qd3 {[%emt 0:07:48]} Nb4 {[%emt 0:03:19] White is slightly
better.} 15. Qe4 {[%emt 0:03:04]} Bf6 {[%emt 0:04:18]} 16. Rad1 {[%emt 0:02:08]
} N6d5 {[%emt 0:07:40]} 17. Qg4 {[%emt 0:02:38]} Kh8 {[%emt 0:12:09]} 18. Ne5 {
[%emt 0:01:06]} Ra6 {[%emt 0:05:27]} 19. Rc1 {[%emt 0:05:31]} Ra8 {[%emt 0:00:
00]} 20. Ne4 {[%emt 0:03:09][%cal Yc1c3] Rc3! is the strong threat.} Be7 {
[%emt 0:00:58]} 21. Bxe7 {[%emt 0:01:05]} Qxe7 {[%emt 0:00:26]} 22. Ng5 $1 $40
{[%emt 0:00:18] aiming for Qh5. Black is in trouble.} Kg8 {[%emt 0:00:00] [#]}
23. Qe4 $1 {[%emt 0:00:28][%csl Gg5][%cal Re4h7]} Nf6 {[%emt 0:00:00] [#]} 24.
Qf3 {[%emt 0:00:58] White is much more active. The black rooks are badly
placed.} ({White should try} 24. Qb1 $1 $16 {Hoping for Nexf7.} Nc6 25. Qd3 (
25. Nxc6 bxc6 26. Rc4 Rb8 $11)) 24... Nc6 {[%emt 0:02:44]} 25. d5 {[%emt 0:01:
07]} ({Much weaker is} 25. Nxc6 bxc6 26. Rc5 (26. Qxc6 Rb8 $11) (26. Rxc6 Bb7
$15) 26... Rb8 $14) 25... Nd4 {[%emt 0:00:37]} 26. Qd3 {[%emt 0:00:26]} Nxb3 {
[%emt 0:00:15]} 27. Ng4 {[%emt 0:00:44]} ({White has to play} 27. Qxb3 $16 {
Strongly threatening Nexf7.} Nxd5 28. Qd3) 27... Rd8 $2 {[%emt 0:01:01] This
costs Black the game.} 28. d6 {[%emt 0:00:27]} (28. Nxf6+ $142 Qxf6 29. Qxh7+
Kf8 30. Rc7) 28... Rxd6 $18 {[%emt 0:02:41]} 29. Nxf6+ {[%emt 0:00:00]} Qxf6 {
[%emt 0:00:05]} 30. Qxd6 {[%emt 0:00:34]} e5 {[%emt 0:01:40]} 31. Qxe5 {
[%emt 0:00:38][%cal Re5e8]} Be6 {[%emt 0:00:30]} (31... Qxe5 $142 32. Rxe5 Bd7)
32. Rc3 {[%emt 0:00:12]} ({Not} 32. Nxe6 Qxe5 33. Rxe5 Nxc1 $16) 32... Qxe5 {
[%emt 0:02:59]} 33. Rxe5 {[%emt 0:00:04]} Nd4 {[%emt 0:00:06]} 34. Nxe6 {
[%emt 0:00:10]} Nxe6 {[%emt 0:00:05]} 35. Rb3 {[%emt 0:00:17][%cal Yc3b3,Yb3b5,
Yb5b6]} Ra7 {[%emt 0:01:20]} 36. Rbb5 {[%emt 0:00:10]} b6 {[%emt 0:00:18]} 37.
Rxb6 {[%emt 0:00:05] Weighted Error Value: White=0.38/ Black=0.23 (precise)}
1-0

[Event "44th Chess Olympiad Open 2022"]
[Site "Chennai"]
[Date "2022.08.07"]
[Round "9.10"]
[White "Onyshchuk, Volodymyr"]
[Black "Zhao, Zong-Yuan"]
[Result "1/2-1/2"]
[WhiteElo "2612"]
[BlackElo "2513"]
[Annotator "TA"]
[PlyCount "66"]
[EventDate "2022.??.??"]
[TimeControl "60"]

{[%evp 12,66,15,17,12,15,2,-3,-5,-15,-5,-12,-14,-12,0,-41,-33,-41,0,0,0,0,0,0,
0,0,0,0,0,0,0,-45,-45,-27,-34,-33,-48,-159,-142,-344,-351,-331,-43,-173,-12,
-15,-15,-69,0,0,0,-52,0,0,0,-72,0]} 1. Nf3 {[%emt 0:00:11]} d5 {[%emt 0:00:26]}
2. g3 {[%emt 0:00:16]} Nf6 {[%emt 0:00:17]} 3. Bg2 {[%emt 0:00:05]} c6 {
[%emt 0:00:05]} 4. O-O {[%emt 0:00:46]} Bg4 {[%emt 0:00:27]} 5. d3 {[%emt 0:00:
00]} Nbd7 {[%emt 0:00:06]} 6. Nbd2 {[%emt 0:00:31]} e5 {[%emt 0:00:16]} 7. e4 {
[%emt 0:00:08]} Be7 {[%emt 0:06:27] A07: Réti Opening: New York and
Capablanca Systems.} 8. h3 {[%emt 0:01:21]} Bh5 {[%emt 0:00:09]} 9. exd5 {
[%emt 0:02:12]} Nxd5 {[%emt 0:00:06] [#] The position is equal.} 10. g4 $146 {
[%emt 0:11:57]} ({Predecessor:} 10. Re1 f6 11. Ne4 O-O 12. g4 Bf7 13. d4 Re8
14. Bd2 Qc7 15. dxe5 Nxe5 16. Nxe5 fxe5 {½-½ (26) Esposito,L (2464)-Romm,M 
(2457) ICCF email 2019}) 10... Bg6 {[%emt 0:00:07]} 11. Nc4 {[%emt 0:00:23]}
Qc7 {[%emt 0:13:29]} 12. Re1 {[%emt 0:15:17][%cal Rc4e5,Yf1e1,Ye1e7,Ye7g7]} f6
{[%emt 0:01:12]} 13. Nh4 {[%emt 0:12:49]} (13. d4 $5 {[%cal Rd4e5]}) 13...
O-O-O {[%emt 0:05:35]} 14. d4 {[%emt 0:01:50]} exd4 {[%emt 0:00:00]} 15. Bxd5 {
[%emt 0:05:37]} cxd5 {[%emt 0:00:02]} 16. Rxe7 {[%emt 0:00:08] [#] Threatens
to win with Na3.} Qxc4 {[%emt 0:00:18]} 17. Bf4 $1 {[%emt 0:00:00]} Ne5 {
[%emt 0:12:20]} 18. Rxg7 {[%emt 0:08:57] Strongly threatening g5.} Bxc2 {
[%emt 0:10:40]} 19. Qd2 {[%emt 0:01:07]} Rd7 {[%emt 0:00:35]} 20. Rc1 {[%emt 0:
06:00]} d3 {[%emt 0:00:26]} (20... Rxg7 $2 21. Rxc2 d3 22. Rxc4+ dxc4 23. Qa5
$18) 21. Rxd7 {[%emt 0:08:48]} Kxd7 {[%emt 0:00:02]} 22. b3 {[%emt 0:00:00]}
Qc5 {[%emt 0:05:22]} 23. Re1 {[%emt 0:01:12]} Re8 {[%emt 0:00:52]} 24. Bg3 {
[%emt 0:03:49]} (24. g5 $15) 24... a5 {[%emt 0:06:21] And now ...Qb4 would win.
} 25. Bxe5 $2 {[%emt 0:00:48]} (25. Bf4 $17) 25... fxe5 $19 {[%emt 0:00:00]}
26. Qh6 {[%emt 0:00:28]} Qc3 $2 {[%emt 0:05:01]} (26... Re6 $19 27. Qxh7+ Qe7
28. Qxe7+ Rxe7) 27. Nf3 $15 {[%emt 0:00:33]} e4 $2 {[%emt 0:01:40]} (27... Kc8
$19 {Hoping for ...e4.} 28. Nd2 Kb8) 28. Qxh7+ $11 {[%emt 0:00:26]} Re7 {
[%emt 0:01:35]} 29. Qf5+ {[%emt 0:00:05]} (29. Qh5 $11 Qc5 30. Nd2) 29... Kd6 {
[%emt 0:00:15]} (29... Kc6 $1 $15 30. Qg6+ (30. Qc8+ $2 Rc7 $19) 30... Kc5) 30.
Qf4+ {[%emt 0:00:22]} Kd7 {[%emt 0:00:29]} (30... Kc6 $11) 31. Qf5+ $15 {
[%emt 0:00:24]} Kd6 {[%emt 0:00:14]} (31... Kc6 $5 {[%cal Rd3d2]} 32. Qg6+ (32.
Qc8+ $2 Rc7 $19) 32... Kc7 $11) 32. Qf4+ {[%emt 0:00:12]} Kd7 {[%emt 0:00:33]}
33. Qf5+ {[%emt 0:01:10] [#]} Kd6 {[%emt 0:01:16] Weighted Error Value:
White=0.14 (very precise) /Black=0.39} (33... Kc6 $1 $17 34. Qg6+ (34. Qc8+ $2
Rc7 $19) 34... Kc7) 1/2-1/2

[Event "44th Chess Olympiad Open 2022"]
[Site "Chennai"]
[Date "2022.08.07"]
[Round "9.10"]
[White "Smirnov, Anton"]
[Black "Volokitin, Andrei"]
[Result "1/2-1/2"]
[WhiteElo "2600"]
[BlackElo "2674"]
[Annotator "TA"]
[PlyCount "46"]
[EventDate "2022.??.??"]
[TimeControl "60"]

{[%evp 19,46,-8,21,30,30,20,23,23,56,14,16,16,16,24,23,34,29,0,0,0,0,0,0,0,0,0,
0,0,0]} 1. d4 {[%emt 0:00:03]} Nf6 {[%emt 0:00:07]} 2. c4 {[%emt 0:00:06]} e6 {
[%emt 0:00:09]} 3. Nc3 {[%emt 0:00:05]} Bb4 {[%emt 0:00:06]} 4. e3 {[%emt 0:00:
00]} O-O {[%emt 0:00:11]} 5. Bd3 {[%emt 0:00:12]} d5 {[%emt 0:00:22]} 6. a3 {
[%emt 0:00:10]} Bxc3+ {[%emt 0:00:58]} 7. bxc3 {[%emt 0:00:12]} dxc4 {[%emt 0:
00:00]} 8. Bxc4 {[%emt 0:00:05]} c5 {[%emt 0:00:06]} 9. Ne2 {[%emt 0:00:05]}
Qc7 {[%emt 0:04:37]} 10. Bd3 {[%emt 0:00:07]} b6 {[%emt 0:03:25] 10...Nc6
gains popularity.} 11. e4 {[%emt 0:02:29] E49: Nimzo-Indian: Rubinstein: 5 Bd3
d5 6 a3 Bxc3+ 7 bxc3.} Ba6 {[%emt 0:10:07]} 12. Bxa6 {[%emt 0:04:15]} Nxa6 {
[%emt 0:00:04][%cal Yb8a6,Ya6c5,Yc5b3,Yb3a1] [#]} 13. f3 $146 {[%emt 0:00:08]
White has an edge.} ({Predecessor:} 13. Qd3 Nb8 14. O-O Nbd7 15. Bg5 cxd4 16.
cxd4 Rac8 17. f3 h6 18. Bh4 Qc2 19. Qe3 {½-½ (90) Sarana,A (2666)-Parligras,
M (2575) Warsaw 2021}) 13... e5 {[%emt 0:18:29]} 14. Bg5 {[%emt 0:13:47]} cxd4
{[%emt 0:15:46]} 15. Bxf6 {[%emt 0:08:13]} (15. cxd4 {is more complex.} exd4
16. Bxf6 gxf6 17. Qxd4 f5 18. O-O) 15... gxf6 {[%emt 0:00:00]} 16. cxd4 {
[%emt 0:00:06]} exd4 {[%emt 0:00:09]} 17. Qxd4 {[%emt 0:00:00]} Nc5 {[%emt 0:
00:36]} 18. O-O {[%emt 0:08:24]} Nb3 {[%emt 0:03:12][%csl Ya1,Yd4] The
position is equal.} 19. Qxf6 {[%emt 0:00:36]} Nxa1 {[%emt 0:00:00]} 20. Qg5+ {
[%emt 0:20:35]} Kh8 {[%emt 0:00:07] [#] ...f6 is the strong threat.} 21. Qf6+ {
[%emt 0:00:03]} Kg8 {[%emt 0:00:04] Strongly threatening ... Qc5+.} 22. Qg5+ {
[%emt 0:00:04]} Kh8 {[%emt 0:00:04] Threatens to win with ... f6.} 23. Qf6+ {
[%emt 0:00:03]} Kg8 {[%emt 0:00:02] Weighted Error Value: White=0.08 (flawless)
/Black=0.08 (flawless)} 1/2-1/2

[Event "44th Chess Olympiad Open 2022"]
[Site "Chennai"]
[Date "2022.08.07"]
[Round "9.10"]
[White "Cheng, Bobby"]
[Black "Shevchenko, Kirill"]
[Result "1/2-1/2"]
[WhiteElo "2540"]
[BlackElo "2654"]
[Annotator "TA"]
[PlyCount "65"]
[EventDate "2022.??.??"]
[TimeControl "60"]

{[%evp 11,65,37,47,37,55,25,43,47,46,56,43,35,53,49,54,34,39,26,39,0,0,0,0,0,0,
-25,-18,-69,85,91,95,88,97,84,96,91,79,85,84,-202,0,0,0,0,0,-156,0,0,0,-117,
-100,-194,-186,-162,0,0]} 1. d4 {[%emt 0:00:04]} Nf6 {[%emt 0:00:04]} 2. c4 {
[%emt 0:00:04]} g6 {[%emt 0:00:04]} 3. Nc3 {[%emt 0:00:18]} Bg7 {[%emt 0:00:05]
} 4. e4 {[%emt 0:00:05]} d6 {[%emt 0:00:03]} 5. h3 {[%emt 0:00:24]} O-O {
[%emt 0:00:57]} 6. Be3 {[%emt 0:00:27]} Na6 {[%emt 0:02:49]} 7. g4 {[%emt 0:00:
00] E71: King's Indian: 4 e4 d6 5 h3.} e5 {[%emt 0:03:02]} 8. d5 {[%emt 0:00:
00]} Nc5 {[%emt 0:00:05]} 9. f3 {[%emt 0:00:26] White is slightly better.} a5 {
[%emt 0:00:18]} 10. Qd2 {[%emt 0:03:52]} c6 {[%emt 0:10:42]} 11. Nge2 {[%emt 0:
00:00]} a4 {[%emt 0:00:54]} 12. Ng3 {[%emt 0:03:46]} h5 {[%emt 0:01:51]} 13.
Rg1 {[%emt 0:05:14]} cxd5 $1 {[%emt 0:30:34] [#]} (13... hxg4 14. hxg4 Re8 15.
Rh1 $16) 14. Nxd5 $146 {[%emt 0:09:09]} ({Predecessor:} 14. cxd5 h4 15. Nh1 Bd7
16. Nf2 Qa5 17. Nb1 Qc7 18. Na3 Rfc8 19. Nd3 Nfxe4 20. fxe4 Nxe4 {0-1 (51)
Koelle,T (2380)-Lagarde,M (2638) Sousse 2021}) 14... h4 {[%emt 0:05:40] [#]
aiming for ...Nxd5.} 15. Nf5 $1 {[%emt 0:08:50]} Nxd5 {[%emt 0:07:52]} (15...
gxf5 $2 16. gxf5 Ne8 17. Bh6 $18) 16. cxd5 {[%emt 0:00:33]} gxf5 {[%emt 0:00:
00]} 17. gxf5 {[%emt 0:00:07]} f6 $1 {[%emt 0:01:00]} 18. Bxc5 {[%emt 0:00:38]}
dxc5 {[%emt 0:02:05]} 19. O-O-O {[%emt 0:00:05]} (19. Qh6 Qa5+ 20. Kd1 Rf7 $17)
(19. d6 $11 Qa5 20. Bc4+ Kh7 21. Qxa5 Rxa5 22. Rg4) 19... Qd6 $2 {[%emt 0:00:
00]} (19... Qa5 $1 $15 {stays ahead.} 20. Rxg7+ (20. Qh6 Rf7 $17) 20... Kxg7
21. Qg2+ Kh8) 20. Qh6 $1 $16 {[%emt 0:24:58][%csl Gh6][%cal Rg1g7]} Rf7 {
[%emt 0:00:04][%cal Yc5c4]} 21. Bb5 {[%emt 0:00:03] Intending Rg4 and mate.}
Bd7 {[%emt 0:12:16] [#]} 22. Rg4 $1 {[%emt 0:02:06][%cal Yd1g1] White
threatens Rdg1! and mate. White is more active.} Bxb5 {[%emt 0:02:10]} 23. Rdg1
{[%emt 0:00:04][%cal Rg4g7]} Qf8 {[%emt 0:00:17]} 24. Rxh4 {[%emt 0:01:58]
[%csl Gh4][%cal Rh6h8]} Rd7 {[%emt 0:00:15] [#]} 25. Qh7+ {[%emt 0:02:09]} (25.
d6 $1 $16 Rad8 26. Qh7+ (26. Qh8+ Kf7 $16) 26... Kf7 27. Rhg4) 25... Kf7 $11 {
[%emt 0:00:02] Threatens to win with ...Qg8.} 26. Rhg4 {[%emt 0:00:36][%cal
Rg4g7] Really sharp!} Ke7 {[%emt 0:01:58][%cal Ye7d6] And now ...Kd6! would
win.} 27. Rxg7+ {[%emt 0:10:13]} Kd6 {[%emt 0:00:01] Strongly threatening ...
a3.} 28. Rxd7+ {[%emt 0:00:48]} Bxd7 {[%emt 0:00:01]} 29. Rg7 {[%emt 0:00:05]
[%csl Gh7][%cal Rg7d7]} Qd8 {[%emt 0:02:07] ...a3 is the strong threat.} 30.
Rf7 {[%emt 0:00:04]} (30. a3 $11 {keeps the balance.}) 30... a3 $17 {[%emt 0:
00:00]} 31. Qg7 {[%emt 0:00:02]} (31. Qh6 $17) 31... axb2+ {[%emt 0:00:05]} 32.
Kxb2 {[%emt 0:01:24]} Rxa2+ $2 {[%emt 0:01:56]} 33. Kxa2 {[%emt 0:00:50]
Weighted Error Value: White=0.34/Black=0.18 (very precise)} 1/2-1/2

[Event "44th Chess Olympiad Open 2022"]
[Site "Chennai"]
[Date "2022.08.07"]
[Round "9.11"]
[White "McShane, Luke J"]
[Black "Krysa, Leandro"]
[Result "1-0"]
[WhiteElo "2649"]
[BlackElo "2515"]
[Annotator "TA"]
[PlyCount "115"]
[EventDate "2022.??.??"]
[TimeControl "60"]

{[%evp 9,115,10,19,16,15,0,22,0,10,-11,28,-52,0,-35,-26,-25,-43,-31,-4,-22,0,
-10,0,0,0,0,41,42,54,25,92,84,127,120,120,118,122,77,74,78,73,80,74,81,162,47,
62,20,29,0,0,0,0,0,5,8,20,28,70,20,22,26,39,45,72,89,147,156,164,134,304,278,
430,412,435,424,422,420,420,0,302,0,417,432,406,284,281,262,1318,1409,1162,
1141,1413,1316,29968,29971,29967,29973,29981,29982,29982,29971,29964,29965,
29983,29984,29987,29988]} 1. e4 {[%emt 0:00:03]} c6 {[%emt 0:00:09]} 2. Nf3 {
[%emt 0:00:08]} d5 {[%emt 0:00:12]} 3. d3 {[%emt 0:00:03]} Qc7 {[%emt 0:00:50]}
4. Nbd2 {[%emt 0:00:07]} Bg4 {[%emt 0:06:31]} 5. Be2 {[%emt 0:06:14]} e6 {
[%emt 0:03:18]} 6. O-O {[%emt 0:00:15] B10: Caro-Kann: 2 d3 and 2 c4.} Nf6 {
[%emt 0:05:44]} 7. c3 {[%emt 0:10:43]} Nbd7 {[%emt 0:06:31]} 8. Re1 {[%emt 0:
00:00] The position is equal.} (8. Nd4 $5 {[%cal Re2g4]} Bxe2 9. Qxe2 $11) 8...
Bd6 {[%emt 0:06:18]} 9. Qc2 {[%emt 0:00:13] [#]} O-O-O $146 {[%emt 0:12:46]} ({
Predecessor:} 9... O-O 10. h3 Bh5 11. Nh4 dxe4 12. Nxe4 Nxe4 13. dxe4 Bxe2 14.
Qxe2 Be7 15. Nf3 Ne5 {½-½ (23) Gregor,M (2099)-Murin,P (2023) Liptovsky
Mikulas 2005}) 10. Nf1 {[%emt 0:02:31]} (10. h3 $11 Bh5 11. d4 dxe4 12. Nxe4)
10... Kb8 {[%emt 0:08:02]} (10... dxe4 $15 11. dxe4 Bxf3 12. Bxf3 Bf4) 11. a4 {
[%emt 0:02:01]} (11. Ng5 $5 {[%cal Rg5f7]} Rhf8 12. Bxg4 Nxg4 13. h3 $11) 11...
dxe4 {[%emt 0:08:42]} 12. dxe4 {[%emt 0:00:09]} Bxf3 {[%emt 0:00:24]} 13. Bxf3
{[%emt 0:00:07]} Ne5 {[%emt 0:00:09]} 14. Be2 {[%emt 0:08:41]} h5 {[%emt 0:00:
00]} 15. Bg5 {[%emt 0:01:53]} Neg4 {[%emt 0:07:18]} 16. Bxg4 {[%emt 0:08:23]}
hxg4 {[%emt 0:01:14]} 17. g3 $1 {[%emt 0:00:20][%cal Ye4e5] [#] Black must now
prevent e5!} Rh5 {[%emt 0:07:44]} (17... Nd7 $5 {[%cal Rf7f6]} 18. Bxd8 Qxd8
$11) 18. Bxf6 {[%emt 0:08:47]} gxf6 {[%emt 0:00:04]} 19. Qe2 {[%emt 0:00:35]}
Rg8 {[%emt 0:06:21]} (19... f5 $11 {keeps the balance.}) 20. Rad1 $16 {[%emt 0:
00:00]} a5 {[%emt 0:01:54] [#]} 21. Rd3 $1 {[%emt 0:04:46]} Bc5 {[%emt 0:06:49]
} 22. Red1 {[%emt 0:00:55]} Qe5 {[%emt 0:01:47]} 23. Rd8+ {[%emt 0:07:10]} Rxd8
{[%emt 0:00:07]} 24. Rxd8+ {[%emt 0:00:04]} Kc7 {[%emt 0:01:12]} 25. Qd3 {
[%emt 0:00:11]} ({But not} 25. Qd1 Bd6 26. Rg8 Qxe4 $11) 25... Bd6 {[%emt 0:00:
00]} 26. Rg8 {[%emt 0:00:22] Threatens to win with Rg7.} Rg5 {[%emt 0:02:04]
Inhibits Rg7.} (26... f5 $16 {was called for.}) 27. Rh8 {[%emt 0:16:12]} ({
Better is} 27. Re8 $18) 27... Rh5 $1 $14 {[%emt 0:01:30]} 28. Rxh5 {[%emt 0:00:
00]} Qxh5 {[%emt 0:00:03] Endgame KQB-KQN} 29. Ne3 {[%emt 0:00:10]} Bc5 {
[%emt 0:00:54]} 30. Nc4 {[%emt 0:00:07]} Qg5 {[%emt 0:01:40]} 31. Kg2 {[%emt 0:
00:12]} b6 {[%emt 0:00:44]} 32. Qe2 {[%emt 0:02:47]} Qh5 {[%emt 0:00:00]} 33.
Qd2 {[%emt 0:00:40] Hoping for Qf4+.} e5 {[%emt 0:00:41] Inhibits Qf4.} 34. Qd3
{[%emt 0:01:54]} (34. b4 $14 axb4 35. cxb4) 34... Qh3+ {[%emt 0:00:00]} 35. Kg1
{[%emt 0:00:04][%cal Yb2b4]} Qh6 {[%emt 0:00:40]} 36. Nd2 {[%emt 0:00:18]} Qg5
{[%emt 0:00:27]} 37. Nb3 {[%emt 0:00:59]} Qh6 {[%emt 0:00:00]} ({Black should
try} 37... Bd6) 38. Qe2 $16 {[%emt 0:01:14]} Qg5 {[%emt 0:00:00]} 39. Qa6 {
[%emt 0:04:16]} Kd6 {[%emt 0:00:08]} (39... Qg6 $16 {was necessary.}) 40. Qc8
$18 {[%emt 0:00:41]} Qh6 {[%emt 0:00:58]} (40... Qg6 $142 41. Qd8+ Ke6) 41.
Qd8+ {[%emt 0:10:43]} Ke6 {[%emt 0:00:13][%cal Yc5f2]} 42. Nxc5+ {[%emt 0:00:
54]} bxc5 {[%emt 0:00:06] KQ-KQ} 43. Qe8+ {[%emt 0:00:13]} Kd6 {[%emt 0:00:11]}
44. Qd8+ {[%emt 0:00:02]} Ke6 {[%emt 0:00:06]} 45. Qe8+ {[%emt 0:00:03]} ({
Weaker is} 45. Qxa5 Qc1+ 46. Kg2 Qe1 $11) 45... Kd6 {[%emt 0:00:00]} 46. Qxf7 {
[%emt 0:00:05]} c4 {[%emt 0:03:04]} 47. h4 {[%emt 0:06:04]} gxh3 {[%emt 0:02:
38]} 48. Kh2 {[%emt 0:00:04]} ({Not} 48. Qxc4 h2+ 49. Kh1 Qd2 $11) 48... Qd2 $2
{[%emt 0:25:26]} (48... Qh8 49. Qxc4 Qh7 50. Qd3+ Ke6) 49. Qxf6+ {[%emt 0:00:
23]} Kd7 {[%emt 0:00:20]} 50. g4 {[%emt 0:01:37][%cal Yg3g4,Yg4g5] Threatening
mate with g5.} Qe2 {[%emt 0:02:12]} 51. Qf5+ {[%emt 0:01:22]} Kd6 {[%emt 0:00:
15]} 52. g5 {[%emt 0:00:21] White mates.} Qf1 {[%emt 0:00:37]} 53. Qf3 {
[%emt 0:00:32]} Qd3 {[%emt 0:00:28]} 54. Qf6+ {[%emt 0:00:30]} Kc7 {[%emt 0:00:
41]} 55. Qf5 {[%emt 0:01:00]} Qf1 {[%emt 0:00:00]} 56. Qxe5+ {[%emt 0:00:09]}
Kb6 {[%emt 0:00:36]} 57. Qg3 {[%emt 0:00:31]} c5 {[%emt 0:00:32]} 58. g6 {
[%emt 0:00:22] Weighted Error Value: White=0.28 (precise) /Black=0.35} 1-0

[Event "44th Chess Olympiad Open 2022"]
[Site "Chennai"]
[Date "2022.08.07"]
[Round "9.11"]
[White "Peralta, Fernando"]
[Black "Adams, Michael"]
[Result "1/2-1/2"]
[WhiteElo "2591"]
[BlackElo "2696"]
[Annotator "TA"]
[PlyCount "61"]
[EventDate "2022.??.??"]
[TimeControl "60"]

{[%evp 17,61,6,16,0,0,0,14,18,17,18,22,16,22,15,18,20,19,20,23,21,16,6,8,4,9,2,
2,8,10,5,8,0,2,0,0,0,0,0,0,0,0,0,0,0,0,-878]} 1. d4 {[%emt 0:00:06]} Nf6 {
[%emt 0:00:06]} 2. c4 {[%emt 0:00:05]} e6 {[%emt 0:00:04]} 3. Nc3 {[%emt 0:00:
00]} Bb4 {[%emt 0:00:06]} 4. e3 {[%emt 0:00:20]} O-O {[%emt 0:00:10]} 5. Bd3 {
[%emt 0:00:10]} d5 {[%emt 0:00:07]} 6. Nf3 {[%emt 0:00:30]} c5 {[%emt 0:01:08]}
7. O-O {[%emt 0:00:12]} dxc4 {[%emt 0:00:05]} 8. Bxc4 {[%emt 0:00:04]} Nc6 {
[%emt 0:00:07]} 9. a3 {[%emt 0:00:33]} Ba5 {[%emt 0:00:06]} 10. h3 {[%emt 0:00:
00] E56: Nimzo-Indian: Rubinstein: Main Line: 7...Nc6.} h6 {[%emt 0:04:48]} 11.
Qd3 $1 {[%emt 0:00:59]} Qe7 {[%emt 0:03:42] [#]} 12. dxc5 $146 {[%emt 0:01:58]
White wants to play b4.} ({Predecessor:} 12. Ne4 cxd4 13. exd4 e5 14. Nxf6+
Qxf6 15. dxe5 Nxe5 16. Nxe5 Qxe5 17. Qb3 Bd7 18. Rd1 {½-½ (18) Mostowik,D 
(2210)-Raessler,A (2276) ICCF email 2008}) 12... Rd8 {[%emt 0:00:40]} 13. Qc2 {
[%emt 0:00:41] Threatens to win with b4.} Qxc5 {[%emt 0:01:51]} 14. Ne4 {
[%emt 0:00:46]} Nxe4 {[%emt 0:01:06]} 15. Qxe4 {[%emt 0:00:07] [#] b4 is the
strong threat.} Qf5 {[%emt 0:00:40]} 16. Qxf5 {[%emt 0:04:28]} exf5 {[%emt 0:
00:00]} 17. b4 {[%emt 0:02:20]} Bb6 {[%emt 0:00:17]} 18. Bb2 {[%emt 0:00:52]}
Be6 {[%emt 0:00:22] The position is equal.} 19. Bxe6 {[%emt 0:17:16]} fxe6 {
[%emt 0:00:02]} 20. Rfd1 {[%emt 0:00:10]} a6 {[%emt 0:06:01]} 21. Kf1 {[%emt 0:
00:00]} Rxd1+ {[%emt 0:08:13]} 22. Rxd1 {[%emt 0:00:07] [#] Hoping for Rd7.}
Rd8 {[%emt 0:00:07] Inhibits Rd7.} 23. Rc1 {[%emt 0:01:03]} Rd5 {[%emt 0:05:52]
} 24. Ke2 {[%emt 0:00:29]} Kf7 {[%emt 0:06:07]} 25. Rc4 {[%emt 0:08:30]} a5 {
[%emt 0:07:44]} 26. e4 {[%emt 0:08:07]} fxe4 {[%emt 0:04:21]} 27. Rxe4 {
[%emt 0:00:18]} axb4 {[%emt 0:00:07]} 28. axb4 {[%emt 0:00:07]} Bc7 {[%emt 0:
00:00]} 29. Ne1 {[%emt 0:08:15]} Be5 {[%emt 0:02:16]} 30. Bxe5 {[%emt 0:02:43]}
Nxe5 {[%emt 0:00:07]} 31. Rd4 $2 {[%emt 0:00:28] Weighted Error Value: White=0.
02 (flawless) /Black=0.01 (flawless) . An unexpected result.} 1/2-1/2